[Event "26th Womens ECCC 2022"]
[Site "Mayrhofen"]
[Date "2022.10.07"]
[Round "5.17"]
[White "Muzychuk, Mariya"]
[Black "Eric, Jovana"]
[Result "1-0"]
[ECO "E39"]
[WhiteElo "2527"]
[BlackElo "2252"]
[Annotator "TA"]
[PlyCount "209"]
[EventDate "2022.10.03"]
[EventType "team-tourn"]
[EventCountry "AUT"]
[SourceTitle "playchess.com"]
[Source "ChessBase"]
[SourceQuality "1"]
[TimeControl "40/5400+30:1800+30"]

{[%evp 23,209,14,23,17,29,25,31,17,39,50,62,17,19,22,18,11,16,28,30,35,15,14,26,6,16,17,37,46,55,52,47,39,49,53,48,25,131,131,129,89,89,89,80,70,77,62,62,62,62,62,62,62,62,62,62,62,62,62,69,69,67,77,83,83,84,84,119,87,111,72,72,72,79,79,94,94,94,60,94,60,79,79,79,79,79,79,79,79,79,79,127,79,79,79,79,79,79,60,83,83,95,86,86,69,91,69,69,69,69,69,69,69,69,69,69,69,69,69,69,51,69,69,69,51,69,69,69,69,69,51,69,51,51,19,19,19,19,19,19,19,19,19,27,-22,0,0,107,85,81,81,103,100,245,100,187,187,1401,1192,1097,1025,1908,3141,2447,2378,29968,29969,29970,29970,29972,29973,29974,29975,29978,29979,29979,29980,29980,29981,29981,29982,29982,29980,29980,29981,29981,29982,29981,4133]} 1. d4 {[%emt 0:00:06]} Nf6 {[%emt 0:00:14]} 2. c4 {[%emt 0:00:10]} e6 {[%emt 0:00:09]} 3. Nc3 {[%emt 0:00:21]} Bb4 {[%emt 0:00:28]} 4. Qc2 {[%emt 0:00:16]} c5 {[%emt 0:02:59]} 5. dxc5 {[%emt 0:03:31]} O-O {[%emt 0:00:48]} 6. a3 {[%emt 0:01:26]} Bxc5 {[%emt 0:00:16]} 7. Nf3 {[%emt 0:00:12]} Nc6 {[%emt 0:01:13]} 8. Bg5 {[%emt 0:01:04]} Be7 {[%emt 0:07:06]} 9. e3 {[%emt 0:03:06]} h6 {[%emt 0:00:52]} 10. Bh4 {[%emt 0:00:41]} b6 {[%emt 0:04:31]} 11. Be2 {[%emt 0:03:21]} Bb7 {[%emt 0:01:15]} 12. O-O {[%emt 0:00:11]} Rc8 {[%emt 0:01:24]} 13. Rfd1 {[%emt 0:01:58] E39: Nimzo-Indian: Classical: 4...c5 5 dxc5 0-0.} d6 {[%emt 0:08:28]} 14. b4 {[%emt 0:03:56] [#]} Rc7 $146 {[%emt 0:07:10]} ({Predecessor:} 14... a6 15. Rac1 Nb8 16. Qd3 Rc7 {½-½ (18) Drasko,M (2557)-Caruana,F (2594) Heraklion 2007}) 15. Rd2 {[%emt 0:02:43] White is slightly better.} Rd7 {[%emt 0:00:15]} 16. Rad1 {[%emt 0:01:37]} Qb8 {[%emt 0:05:28]} 17. Nb5 {[%emt 0:02:29] White is more active.} Rfd8 $1 {[%emt 0:00:57]} 18. h3 {[%emt 0:11:57]} a6 {[%emt 0:07:35]} (18... a5 {is more complex.} 19. bxa5 Nxa5 20. Ne5 dxe5 21. Rxd7 Rxd7 22. Rxd7 Nxd7 23. Bxe7 Bc6) 19. Nc3 {[%emt 0:00:22]} Qc7 {[%emt 0:02:51]} 20. Bg3 {[%emt 0:04:47]} Ne5 {[%emt 0:02:47]} 21. Nxe5 {[%emt 0:03:08]} dxe5 {[%emt 0:00:06]} 22. Rxd7 {[%emt 0:04:18]} Rxd7 {[%emt 0:00:07]} 23. Rxd7 {[%emt 0:00:37]} Nxd7 {[%emt 0:00:06]} 24. f3 {[%emt 0:03:48]} f5 {[%emt 0:09:47]} 25. e4 {[%emt 0:02:39]} f4 {[%emt 0:02:50]} 26. Bf2 {[%emt 0:00:08]} Kf7 {[%emt 0:02:02]} 27. Qd3 {[%emt 0:05:04]} g5 {[%emt 0:04:18]} 28. Bd1 {[%emt 0:01:45]} Bc6 {[%emt 0:02:19]} 29. Bb3 {[%emt 0:01:14][%cal Oc4c5]} Qd6 {[%emt 0:01:54] [#] Prevents c5.} (29... a5 $11) 30. Qxd6 $1 $16 {[%emt 0:05:35]} Bxd6 {[%emt 0:00:05]} 31. Na4 {[%emt 0:00:48]} Bc7 {[%emt 0:01:58]} 32. c5 {[%emt 0:01:22][%cal Ra4b6]} b5 {[%emt 0:04:36]} 33. Nc3 {[%emt 0:01:07]} Nb8 {[%emt 0:00:52]} 34. Kf1 {[%emt 0:00:36]} Ke7 {[%emt 0:01:43]} 35. Ke2 {[%emt 0:07:47]} Bd7 {[%emt 0:02:10]} 36. Kd3 {[%emt 0:01:43]} Nc6 {[%emt 0:01:12]} 37. Ne2 {[%emt 0:01:05]} Bd8 {[%emt 0:01:08]} 38. Kc3 {[%emt 0:02:17]} Bc7 {[%emt 0:00:30]} 39. Bc2 {[%emt 0:00:42]} Na7 {[%emt 0:03:17]} 40. Bd3 {[%emt 0:01:28]} Bc6 {[%emt 0:00:09]} 41. Kb3 {[%emt 0:32:07]} Bd8 {[%emt 0:31:35]} 42. Nc3 {[%emt 0:00:43]} Bc7 {[%emt 0:00:59]} 43. a4 {[%emt 0:00:57]} Kf6 {[%emt 0:01:44]} 44. axb5 {[%emt 0:01:14]} axb5 {[%emt 0:00:07]} 45. Ne2 {[%emt 0:00:20]} Bd8 {[%emt 0:03:20]} 46. Kc3 {[%emt 0:00:13]} Kf7 {[%emt 0:02:45]} 47. Nc1 {[%emt 0:00:22]} Bf6 {[%emt 0:01:34]} 48. Nb3 {[%emt 0:00:39]} Ke7 {[%emt 0:00:08]} 49. Be2 {[%emt 0:02:04]} Kd7 {[%emt 0:01:05]} 50. Kb2 {[%emt 0:00:55]} Nc8 {[%emt 0:01:57]} 51. Nc1 {[%emt 0:01:03]} Ne7 {[%emt 0:00:00]} 52. Na2 {[%emt 0:00:00] [#] Nc3 is the strong threat.} Nc8 {[%emt 0:00:00]} 53. Be1 {[%emt 0:00:00]} Kc7 {[%emt 0:00:00]} 54. Kc2 {[%emt 0:00:00]} Kd7 {[%emt 0:00:00]} 55. Bc3 {[%emt 0:00:00]} Kc7 {[%emt 0:00:00]} 56. Bb2 {[%emt 0:00:00]} Kd7 {[%emt 0:00:00]} (56... h5 $142) 57. Kd2 {[%emt 0:00:00]} ({White should try} 57. Nc3) 57... h5 {[%emt 0:00:00]} 58. Nc3 {[%emt 0:00:00]} Na7 {[%emt 0:00:00]} 59. Ke1 {[%emt 0:00:00]} Bg7 {[%emt 0:00:00]} 60. Nd1 {[%emt 0:00:00][%cal Oh3h4]} Nc8 {[%emt 0:00:00]} 61. Nf2 {[%emt 0:00:00]} Ne7 {[%emt 0:00:00]} 62. h4 {[%emt 0:00:00]} gxh4 {[%emt 0:00:00]} 63. Kf1 {[%emt 0:00:00]} Bf6 {[%emt 0:00:00]} 64. Kg1 {[%emt 0:00:00][%mdl 1024] White has strong compensation.} Kc7 {[%emt 0:00:00]} 65. Nd1 {[%emt 0:00:00] Strongly threatening Nc3.} Kb7 {[%emt 0:00:00]} 66. Nc3 {[%emt 0:00:00]} Ka6 {[%emt 0:00:00]} 67. Kh2 {[%emt 0:00:00]} Ng6 {[%emt 0:00:00]} 68. Kh3 {[%emt 0:00:00]} Bg5 {[%emt 0:00:00]} 69. Nd1 {[%emt 0:00:00]} Bf6 {[%emt 0:00:00]} 70. Nf2 {[%emt 0:00:00]} Kb7 {[%emt 0:00:00]} 71. Nd3 {[%emt 0:00:00]} Ka6 {[%emt 0:00:00]} 72. Bc3 {[%emt 0:00:00]} Kb7 {[%emt 0:00:00]} 73. Be1 {[%emt 0:00:00]} Ka6 {[%emt 0:00:00]} 74. Bf2 {[%emt 0:00:00]} Kb7 {[%emt 0:00:00]} 75. Nc1 {[%emt 0:00:00]} Bg5 {[%emt 0:00:00]} 76. Nb3 {[%emt 0:00:00]} Bf6 {[%emt 0:00:00]} 77. Na5+ {[%emt 0:00:00]} Kc7 {[%emt 0:00:00]} 78. Nxc6 {[%emt 0:00:50]} Kxc6 $14 {[%emt 0:00:00][%mdl 4096] Endgame KBB-KBN} 79. Be1 {[%emt 0:00:02]} Be7 {[%emt 0:00:00]} 80. Bd1 {[%emt 0:00:36]} Kc7 {[%emt 0:00:00]} 81. Bb3 {[%emt 0:01:01]} Kd7 {[%emt 0:00:00]} 82. Ba2 {[%emt 0:04:15]} Bf6 {[%emt 0:00:00]} 83. c6+ {[%emt 0:02:35]} (83. Bb1 {was preferrable.}) 83... Kxc6 {[%emt 0:00:00]} (83... Kd6 {feels hotter.} 84. c7 Ne7 85. Bc3 Kxc7 86. Bxe6 Nc6) 84. Bxe6 {[%emt 0:00:03] aiming for Bf7.} Be7 {[%emt 0:00:00]} (84... Ne7 $11) 85. Bf7 $16 {[%emt 0:02:36]} Nf8 {[%emt 0:00:00]} 86. Bc3 {[%emt 0:00:49]} Bf6 {[%emt 0:03:04]} 87. Bxh5 {[%emt 0:02:16] And now Kg4 would win.} Ne6 {[%emt 0:00:17]} (87... Kd7 $16) 88. Kg4 {[%emt 0:01:03]} (88. Be8+ $18 {and the rest is easy.} Kb6 89. Kg4) 88... Nd4 {[%emt 0:01:55]} (88... Kd7 $16 {was necessary.}) 89. Be8+ $18 {[%emt 0:02:48]} Kb6 $2 {[%emt 0:00:47]} (89... Kd6 90. Bxd4 exd4) 90. Bxd4+ {[%emt 0:00:58]} exd4 {[%emt 0:00:04]} 91. Kxf4 {[%emt 0:00:04] KB-KB} Be7 {[%emt 0:00:33]} 92. e5 {[%emt 0:00:26] Black must now prevent Ke4.} Bxb4 {[%emt 0:00:55]} 93. Ke4 {[%emt 0:00:05]} Bc5 {[%emt 0:01:37]} 94. f4 {[%emt 0:00:49][%cal Bf3f4,Bf4f5,Bf5f6][%mdl 32] White mates.} b4 {[%emt 0:00:58]} 95. Ba4 {[%emt 0:00:57]} Kc7 {[%emt 0:03:30]} 96. f5 {[%emt 0:00:15]} Kd8 {[%emt 0:03:18]} 97. f6 {[%emt 0:00:12]} b3 {[%emt 0:00:36]} 98. Bxb3 {[%emt 0:00:46]} Kd7 {[%emt 0:04:38]} 99. Bc4 {[%emt 0:01:49]} Ke8 {[%emt 0:01:24]} 100. e6 {[%emt 0:00:29]} Ba3 {[%emt 0:00:52]} 101. Kf5 {[%emt 0:00:10]} Bb4 {[%emt 0:01:24]} 102. Bb5+ {[%emt 0:00:13]} Kf8 {[%emt 0:00:04]} 103. e7+ {[%emt 0:00:07]} Bxe7 {[%emt 0:00:05]} 104. fxe7+ {[%emt 0:00:02]} Kxe7 {[%emt 0:00:05]} 105. Ke4 {Weighted Error Value: White=0.07 (flawless) /Black=0.10 (very precise)} (105. Kg4 $142 h3 106. Kxh3 Ke6 107. g4 Kd6 108. g5 Kc5 109. Ba6 Kd6 110. Bd3) 1-0

[Event "26th Womens ECCC 2022"]
[Site "Mayrhofen"]
[Date "2022.10.07"]
[Round "5.18"]
[White "Blagojevic, Tijana"]
[Black "Unuk, Laura"]
[Result "0-1"]
[ECO "C47"]
[WhiteElo "2266"]
[BlackElo "2297"]
[Annotator "TA"]
[PlyCount "60"]
[EventDate "2022.10.03"]
[EventType "team-tourn"]
[EventCountry "AUT"]
[SourceTitle "playchess.com"]
[Source "ChessBase"]
[SourceQuality "1"]
[TimeControl "40/5400+30:1800+30"]

{[%evp 13,60,39,31,6,2,0,0,0,0,0,0,0,0,-37,0,0,0,0,10,16,52,-17,-21,-51,-58,-45,-58,-92,-52,-69,-81,-179,-12,-20,-14,-19,-18,-241,-229,-250,-217,-983,-971,-29968,-29961,-29990,-29991,-29991,-29992]} 1. e4 {[%emt 0:00:08]} e5 {[%emt 0:00:26]} 2. Nc3 {[%emt 0:00:09]} Nf6 {[%emt 0:00:44]} 3. Nf3 {[%emt 0:00:08]} Nc6 {[%emt 0:00:13]} 4. d4 {[%emt 0:00:07]} exd4 {[%emt 0:00:52]} 5. Nxd4 {[%emt 0:00:08]} Nxe4 {[%emt 0:00:27]} 6. Nxe4 {[%emt 0:00:33]} Qe7 {[%emt 0:00:16]} 7. f3 {[%emt 0:00:49]} d5 {[%emt 0:00:38][%mdl 64] Pin} 8. Nxc6 {[%emt 0:00:45] C47: Scotch Four Knights and Four Knights with 4 g3.} (8. Bb5 $5 {[%cal Rd4c6]} Bd7 9. Bxc6 bxc6 {[#]} 10. O-O $1 dxe4 11. Re1 $11) 8... bxc6 {[%emt 0:00:20]} 9. Bd3 {[%emt 0:01:40][%cal Oe1g1]} dxe4 {[%emt 0:01:24]} 10. fxe4 {[%emt 0:00:04] The position is equal.} Qh4+ {[%emt 0:00:39]} 11. g3 {[%emt 0:00:48]} Qf6 {[%emt 0:00:33] [#]} 12. c3 $146 {[%emt 0:09:19] Prevents Bb4.} ({Predecessor:} 12. Bf4 Bc5 13. c3 O-O 14. Qh5 Qe7 15. O-O-O g6 16. Qh6 Re8 17. Rhf1 Be6 18. Bg5 {0-1 (53) Zavivaeva,E (1826)-Le Goff,R (2288) Chess.com INT 2021}) 12... Bc5 {[%emt 0:08:54][%csl Gc5][%cal Rf6f2]} 13. Qe2 {[%emt 0:04:51] Inhibits Qf2+.} Qg6 {[%emt 0:11:41]} 14. Be3 {[%emt 0:04:00]} Bg4 {[%emt 0:02:13]} 15. Qf2 {[%emt 0:00:12]} Bxe3 {[%emt 0:02:25]} 16. Qxe3 {[%emt 0:00:05]} Rd8 {[%emt 0:04:27]} 17. h3 {[%emt 0:23:54]} (17. O-O $14) 17... Qh5 $11 {[%emt 0:09:47]} 18. Kd2 {[%emt 0:03:30]} Be6 {[%emt 0:05:04]} ({Don't take} 18... Bxh3 19. g4 Qb5 20. Kc2 Rxd3 21. Qxd3 Bxg4 22. Rag1 Qxd3+ 23. Kxd3 $14) 19. Kc2 {[%emt 0:00:16]} O-O {[%emt 0:01:22]} 20. Be2 {[%emt 0:08:54]} Qe5 {[%emt 0:05:39]} 21. Qf4 {[%emt 0:00:13]} Qa5 {[%emt 0:01:28] Black is more active.} 22. Bg4 {[%emt 0:07:19]} (22. b3 $17 {keeps fighting.}) 22... Bxa2 $2 {[%emt 0:17:48]} (22... Bc4 $19 {And now ...Bd3+ would win.} 23. Rhe1 Bd3+ 24. Kc1 Rfe8) 23. Be2 {[%emt 0:07:12] aiming for Bc4.} Qa4+ {[%emt 0:09:03]} 24. Kc1 {[%emt 0:00:06]} Rb8 {[%emt 0:00:27][%cal Ob8b2] Strongly threatening ...Rxb2!} 25. e5 $2 {[%emt 0:02:38] This move loses the game for White.} (25. Bd1 $11 {and White stays safe.} Qc4 26. Qf1) 25... Qb3 $19 {[%emt 0:03:17]} 26. Qd2 {[%emt 0:00:12]} Rfd8 $40 {[%emt 0:00:25][%mdl 128] Black goes for the king.} 27. Bd1 $2 {[%emt 0:05:11]} (27. Qc2 Qb6 28. Rxa2 Qe3+ 29. Kb1) 27... Qb6 {[%emt 0:03:04]} ({Not} 27... Rxd2 28. Bxb3 Rxb3 29. Kxd2 Rxb2+ 30. Ke3 $16) 28. Qe2 {[%emt 0:03:18] [#]} Bc4 $1 {[%emt 0:00:17][%mdl 512] Black mates.} 29. Qh2 {[%emt 0:00:47]} (29. Re1 Bxe2) 29... Qe3+ {[%emt 0:00:44]} 30. Kb1 {[%emt 0:00:06]} Rd2 {[%emt 0:00:22] Weighted Error Value: White=0.75/Black=0.19 (very precise)} 0-1

[Event "26th Womens ECCC 2022"]
[Site "Mayrhofen"]
[Date "2022.10.07"]
[Round "5.19"]
[White "Urh, Zala"]
[Black "Gajcin, Marina"]
[Result "1-0"]
[ECO "A79"]
[WhiteElo "2221"]
[BlackElo "2228"]
[Annotator "TA"]
[PlyCount "77"]
[EventDate "2022.10.03"]
[EventType "team-tourn"]
[EventCountry "AUT"]
[SourceTitle "playchess.com"]
[Source "ChessBase"]
[SourceQuality "1"]
[TimeControl "40/5400+30:1800+30"]

{[%evp 24,77,111,102,117,116,118,127,173,179,242,256,252,256,251,226,227,258,241,244,245,183,229,114,128,52,54,56,277,275,408,400,826,816,846,836,780,723,829,799,1393,652,635,650,631,591,636,624,835,835,829,828,820,819,813,790]} 1. d4 {[%emt 0:00:01]} Nf6 {[%emt 0:00:18]} 2. c4 {[%emt 0:00:09]} c5 {[%emt 0:00:28]} 3. d5 {[%emt 0:00:05]} e6 {[%emt 0:00:04]} 4. Nc3 {[%emt 0:01:04]} exd5 {[%emt 0:00:13]} 5. cxd5 {[%emt 0:00:05]} d6 {[%emt 0:00:08]} 6. Nf3 {[%emt 0:00:37]} g6 {[%emt 0:00:16]} 7. Nd2 {[%emt 0:00:27]} Bg7 {[%emt 0:00:16]} 8. e4 {[%emt 0:00:06]} O-O {[%emt 0:00:28]} 9. Be2 {[%emt 0:00:15]} Re8 {[%emt 0:00:15]} 10. O-O {[%emt 0:00:11]} Na6 {[%emt 0:00:16]} 11. f3 {[%emt 0:00:45]} Rb8 {[%emt 0:03:27]} 12. a4 {[%emt 0:03:53]} Nc7 {[%emt 0:08:54]} 13. Nc4 {[%emt 0:02:21]} a6 {[%emt 0:19:26] A73: Modern Benoni: Classical: Unusual Black 9th moves.} 14. Bf4 {[%emt 0:18:01] White is more active.} Nh5 {[%emt 0:11:39]} 15. Bxd6 {[%emt 0:10:12] aiming for a5.} Bd4+ {[%emt 0:02:51]} (15... b5 $16 {was necessary.} 16. axb5 axb5) 16. Kh1 $18 {[%emt 0:02:28]} b5 {[%emt 0:00:31]} (16... Bxc3 $142 17. bxc3 b5 18. axb5 (18. Bxc5 bxc4 19. Bxc4 a5 $16) 18... axb5) 17. axb5 {[%emt 0:03:41]} axb5 {[%emt 0:03:02]} 18. Ra7 {[%emt 0:03:26] [#]} Na6 $146 {[%emt 0:04:47]} ({Predecessor:} 18... Bh3 19. Bxc7 Bxg2+ 20. Kxg2 Qg5+ 21. Kh1 bxc4 22. Qc2 Rb4 23. Nd1 Rc8 24. f4 Qh4 25. Bxh5 Qxh5 {1-0 (43) Sarosi,Z (2315)-Schoeppl,E (2315) Werfen 1991}) 19. Bxb8 {[%emt 0:08:30]} bxc4 {[%emt 0:07:24]} 20. g4 {[%emt 0:24:58]} ({Don't play} 20. Bxc4 $6 Nxb8 21. Ne2 Bg7 $16) 20... Nxb8 {[%emt 0:09:18]} 21. gxh5 {[%emt 0:00:33]} Bh3 {[%emt 0:05:45]} 22. hxg6 {[%emt 0:01:02]} hxg6 {[%emt 0:00:19] [#]} 23. Bxc4 {[%emt 0:01:07]} (23. Rg1 $1 $18 {is more deadly.}) 23... Re5 $16 {[%emt 0:09:20]} 24. Ne2 {[%emt 0:06:37]} (24. f4 $16 Bxf1 25. Bxf1) 24... Rg5 $14 {[%emt 0:00:17][%csl Gg5][%cal Rh3g2]} 25. Ng3 {[%emt 0:00:33]} Kg7 $2 {[%emt 0:06:01] This costs Black the game.} (25... Rxg3 $1 $14 26. hxg3 Qg5) 26. Rg1 $18 {[%emt 0:04:23]} Qf6 {[%emt 0:03:02]} (26... Bxg1 {keeps fighting.} 27. Qxg1 (27. Kxg1 Nc6 $18) 27... Qf6) 27. Bf1 {[%emt 0:04:08]} Bxf1 {[%emt 0:02:40]} (27... Bc8 $142 28. Rg2 Be5) 28. Rxf1 {[%emt 0:01:37] White is clearly winning.} Qb6 {[%emt 0:01:06]} 29. Qa4 {[%emt 0:02:23]} c4 {[%emt 0:00:46]} 30. Re7 {[%emt 0:00:22][%cal Ba7e7,Be7e8,Be8c8,Bc8c6][%mdl 32]} Bc5 {[%emt 0:00:32]} 31. Re8 {[%emt 0:00:21]} Qxb2 {[%emt 0:00:24]} 32. Qa1 {[%emt 0:00:52]} (32. Rc8 $142) 32... Qxa1 {[%emt 0:01:12]} 33. Rxa1 {[%emt 0:00:01]} Nd7 {[%emt 0:00:14]} 34. Rc8 {[%emt 0:00:41] [#] And now Rc7 would win.} Bd4 {[%emt 0:00:30]} 35. Rd1 {[%emt 0:00:22]} Nb6 {[%emt 0:00:04]} 36. Rc6 {[%emt 0:00:31]} Be3 {[%emt 0:01:10]} 37. d6 {[%emt 0:00:37]} Rb5 {[%emt 0:01:00]} 38. d7 {[%emt 0:00:22]} Bg5 {[%emt 0:00:32]} 39. d8=Q {[%emt 0:00:31] Weighted Error Value: White=0.72/Black=0.38} 1-0

[Event "26th Womens ECCC 2022"]
[Site "Mayrhofen"]
[Date "2022.10.07"]
[Round "5.20"]
[White "Zarkovic, Mila"]
[Black "Kejzar, Petra"]
[Result "1-0"]
[ECO "B90"]
[WhiteElo "2219"]
[BlackElo "2120"]
[Annotator "TA"]
[PlyCount "81"]
[EventDate "2022.10.03"]
[EventType "team-tourn"]
[EventCountry "AUT"]
[SourceTitle "playchess.com"]
[Source "ChessBase"]
[SourceQuality "1"]
[TimeControl "40/5400+30:1800+30"]

{[%evp 9,81,25,20,0,9,9,0,0,42,39,68,43,40,40,37,0,0,-26,76,76,89,94,106,59,139,137,131,124,165,141,189,180,170,189,179,186,171,180,766,755,846,841,812,842,834,810,896,839,923,897,1039,1020,2183,2136,1791,1235,1817,1216,29983,29984,29988,29972,29971,29972,29964,29966,2156,2137,29978,29978,29954,12632,29987,29981]} 1. e4 {[%emt 0:00:05]} c5 {[%emt 0:00:04]} 2. Nf3 {[%emt 0:00:05]} d6 {[%emt 0:00:03]} 3. d4 {[%emt 0:00:21]} cxd4 {[%emt 0:00:05]} 4. Nxd4 {[%emt 0:00:04]} Nf6 {[%emt 0:00:57]} 5. Nc3 {[%emt 0:00:07]} a6 {[%emt 0:00:15]} 6. h4 {[%emt 0:12:29] B90: Sicilian Najdorf: Unusual White 6th moves, 6 Be3 Ng4 and 6 Be3 e5.} e5 {[%emt 0:06:46]} 7. Nb3 {[%emt 0:00:13]} Be6 {[%emt 0:01:14]} 8. f4 {[%emt 0:00:37] The position is equal.} Be7 {[%emt 0:16:58]} 9. f5 {[%emt 0:01:29]} Bd7 {[%emt 0:01:10] [#]} 10. Bg5 $146 {[%emt 0:16:05]} (10. g4 $5 {[%cal Rg4g5]}) ({Predecessor:} 10. g4 Bc6 11. Bg2 h5 12. g5 Ng4 13. Bf3 a5 14. a4 Na6 15. Bxg4 hxg4 16. Qxg4 {0-1 (44) Albornoz Cabrera,C (2573)-Ter Sahakyan,S (2640) Chess.com INT 2020}) 10... Bc6 {[%emt 0:00:26]} 11. Qf3 {[%emt 0:11:57]} Nbd7 {[%emt 0:02:39]} 12. O-O-O {[%emt 0:04:14]} b5 {[%emt 0:01:53]} 13. a3 {[%emt 0:00:22]} Rb8 {[%emt 0:08:50]} (13... h5 $11 {remains equal.}) 14. g4 $16 {[%emt 0:09:23][%cal Bg2g4,Bg4g5,Bg5f6][%mdl 32] White has more active pieces. The black rooks are badly placed.} b4 {[%emt 0:02:44]} 15. axb4 {[%emt 0:00:04]} Rxb4 {[%emt 0:00:17][%cal Rf6e4]} 16. Bd3 {[%emt 0:00:30]} (16. Nd2 $16) 16... h6 {[%emt 0:10:35]} (16... h5 $14) 17. Bd2 {[%emt 0:03:47]} Qa8 {[%emt 0:07:49]} 18. Rhe1 {[%emt 0:24:30]} (18. g5 $6 Nxe4 19. Na5 (19. Nxe4 $2 Rxe4 20. Qg3 Ra4 $17) 19... d5 20. Bxe4 dxe4 $11) 18... a5 {[%emt 0:01:46] And now ...a4 would win.} 19. g5 {[%emt 0:00:57]} a4 {[%emt 0:03:31]} (19... Nh7 $16 {was necessary.}) 20. gxf6 $18 {[%emt 0:00:31]} axb3 {[%emt 0:00:25] [#]} 21. Nb1 $1 {[%emt 0:00:27]} ({Avoid the trap} 21. fxe7 $2 Qa1+ 22. Nb1 bxc2 23. Bxb4 Qxb1+ 24. Kd2 cxd1=Q+ 25. Qxd1 Qxb2+ 26. Qc2 Qxb4+ $19) ({Don't take} 21. fxg7 $6 Rg8 22. Nb1 (22. Bxh6 bxc2 23. Kxc2 Bxh4 $14) 22... Rd4 $14) 21... bxc2 {[%emt 0:02:35]} 22. Bxc2 {[%emt 0:02:04]} Rc4 {[%emt 0:02:01]} 23. fxe7 {[%emt 0:01:43]} Nc5 $2 {[%emt 0:00:22]} (23... Rxc2+ 24. Kxc2 Qa4+ 25. b3 Qa2+ 26. Kc1 Nc5) 24. Bc3 {[%emt 0:01:39]} Kxe7 {[%emt 0:04:31]} 25. f6+ {[%emt 0:02:29]} gxf6 {[%emt 0:00:53]} 26. Rf1 {[%emt 0:00:17]} Nd7 {[%emt 0:00:43]} 27. Qd3 {[%emt 0:00:36][%csl LRc4,LRd6]} d5 {[%emt 0:02:29]} 28. exd5 {[%emt 0:00:15]} Bb5 {[%emt 0:00:35]} 29. Na3 {[%emt 0:04:46]} Rxc3 {[%emt 0:04:37]} 30. d6+ {[%emt 0:00:21]} Kd8 {[%emt 0:00:48]} 31. Qxc3 {[%emt 0:00:57]} Bxf1 {[%emt 0:00:33]} 32. Qc7+ {[%emt 0:00:05]} Ke8 {[%emt 0:00:06]} 33. Rxf1 {[%emt 0:00:56] Bf5 would kill now.} Rg8 {[%emt 0:01:12] [#]} 34. Ba4 $1 {[%emt 0:01:43][%mdl 512]} Qd8 {[%emt 0:00:34]} (34... Kf8 35. Bc6) 35. Bxd7+ {[%emt 0:00:27]} Qxd7 {[%emt 0:00:02]} 36. Qb8+ {[%emt 0:00:18]} Qd8 {[%emt 0:00:01]} 37. d7+ {[%emt 0:00:11]} Ke7 {[%emt 0:00:18]} 38. Qb4+ {[%emt 0:00:12]} Ke6 {[%emt 0:00:12]} 39. Qc4+ {[%emt 0:00:20]} Ke7 {[%emt 0:00:17]} 40. Qc5+ {[%emt 0:00:06]} (40. Nb5 $142 Qb8 41. Qc5+ Kxd7 42. Rd1+ Ke6 43. Qd5+ Kf5 44. Nd6+ Qxd6 45. Rf1+ Kg6 46. Qxd6) 40... Ke6 {[%emt 0:00:20]} 41. Qc6+ {[%emt 0:30:06] Weighted Error Value: White=0.08 (flawless) /Black=0.50} 1-0